[Event "Late-Titled-Tuesday-Blitz-June-25-2024"]
[Site "Chess.com"]
[Date "2024.06.25"]
[Round "2"]
[White "Flaccidmoves"]
[Black "Fore_Man"]
[Result "0-1"]
[WhiteElo "2536"]
[BlackElo "2202"]
[TimeControl "180+1"]
[EndTime "14:16:16 PDT"]
[Termination "Fore_Man won by checkmate"]

1. d4 {[%clk 0:03:00.9]} 1... Nf6 {[%clk 0:02:56.7]} 2. c4 {[%clk 0:03:01.3]}
2... e6 {[%clk 0:02:57.2]} 3. g3 {[%clk 0:03:00.1]} 3... d5 {[%clk 0:02:57.8]}
4. Bg2 {[%clk 0:03:00.3]} 4... dxc4 {[%clk 0:02:58.5]} 5. Nf3 {[%clk 0:02:59.3]}
5... c5 {[%clk 0:02:59.1]} 6. O-O {[%clk 0:02:55.9]} 6... Nc6 {[%clk 0:02:58.3]}
7. dxc5 {[%clk 0:02:50.2]} 7... Qxd1 {[%clk 0:02:59.2]} 8. Rxd1 {[%clk
0:02:50.3]} 8... Bxc5 {[%clk 0:03:00.1]} 9. Nbd2 {[%clk 0:02:46.8]} 9... c3
{[%clk 0:03:00]} 10. bxc3 {[%clk 0:02:46]} 10... O-O {[%clk 0:03:00.3]} 11. Nb3
{[%clk 0:02:41.5]} 11... Be7 {[%clk 0:03:00.7]} 12. Nfd4 {[%clk 0:02:37.4]}
12... Nxd4 {[%clk 0:03:00.1]} 13. cxd4 {[%clk 0:02:37]} 13... Rb8 {[%clk
0:02:59.8]} 14. Bf4 {[%clk 0:02:34.8]} 14... Ra8 {[%clk 0:02:59.2]} 15. Rac1
{[%clk 0:02:34.6]} 15... Nd5 {[%clk 0:02:58.4]} 16. Bd2 {[%clk 0:02:23.4]} 16...
Ba3 {[%clk 0:02:53.1]} 17. Rc2 {[%clk 0:02:17.4]} 17... b6 {[%clk 0:02:47.2]}
18. e4 {[%clk 0:02:15.2]} 18... Nf6 {[%clk 0:02:46.9]} 19. Rc7 {[%clk
0:01:54.9]} 19... Ba6 {[%clk 0:02:44.6]} 20. Bg5 {[%clk 0:01:49.3]} 20... Rfc8
{[%clk 0:02:40.7]} 21. Rxc8+ {[%clk 0:01:41.6]} 21... Rxc8 {[%clk 0:02:41.6]}
22. d5 {[%clk 0:01:36.4]} 22... exd5 {[%clk 0:02:32.6]} 23. exd5 {[%clk
0:01:36.1]} 23... Bd6 {[%clk 0:02:27.1]} 24. Bxf6 {[%clk 0:01:27.6]} 24... gxf6
{[%clk 0:02:28]} 25. Nd4 {[%clk 0:01:27.4]} 25... Be5 {[%clk 0:02:24.1]} 26. Nf5
{[%clk 0:01:23.3]} 26... Kf8 {[%clk 0:02:21.4]} 27. d6 {[%clk 0:01:21.8]} 27...
Rd8 {[%clk 0:02:21.9]} 28. Bc6 {[%clk 0:01:13.3]} 28... Bc4 {[%clk 0:02:19]} 29.
f4 {[%clk 0:01:08.3]} 29... Bb2 {[%clk 0:02:14.9]} 30. Bd5 {[%clk 0:00:44.9]}
30... Ba6 {[%clk 0:01:54.3]} 31. Bb3 {[%clk 0:00:34.6]} 31... Ba3 {[%clk
0:01:50.9]} 32. g4 {[%clk 0:00:27.6]} 32... Bc5+ {[%clk 0:01:49.9]} 33. Kg2
{[%clk 0:00:27.1]} 33... Be2 {[%clk 0:01:48.3]} 34. Re1 {[%clk 0:00:23.9]} 34...
Bxg4 {[%clk 0:01:45.2]} 35. Nh6 {[%clk 0:00:24]} 35... Bh5 {[%clk 0:01:40.4]}
36. Nf5 {[%clk 0:00:18]} 36... Bg6 {[%clk 0:01:40.8]} 37. Ne7 {[%clk 0:00:16.8]}
37... Bxd6 {[%clk 0:01:37]} 38. Nxg6+ {[%clk 0:00:17.1]} 38... hxg6 {[%clk
0:01:37.5]} 39. Kg3 {[%clk 0:00:16.7]} 39... g5 {[%clk 0:01:36.2]} 40. Kg4
{[%clk 0:00:17]} 40... Bxf4 {[%clk 0:01:35.9]} 41. h4 {[%clk 0:00:17.4]} 41...
Rd7 {[%clk 0:01:32.6]} 42. h5 {[%clk 0:00:17.3]} 42... Kg7 {[%clk 0:01:32.6]}
43. Kf5 {[%clk 0:00:17.7]} 43... Be5 {[%clk 0:01:14.5]} 44. Rh1 {[%clk
0:00:16.9]} 44... Rd4 {[%clk 0:01:13.3]} 45. h6+ {[%clk 0:00:16.4]} 45... Kf8
{[%clk 0:01:09.4]} 46. h7 {[%clk 0:00:16.2]} 46... Rf4# {[%clk 0:01:09.3]} 0-1

[Event "Late-Titled-Tuesday-Blitz-June-25-2024"]
[Site "Chess.com"]
[Date "2024.06.25"]
[Round "2"]
[White "Hamisandwich"]
[Black "Hananmo"]
[Result "0-1"]
[WhiteElo "2744"]
[BlackElo "2556"]
[TimeControl "180+1"]
[EndTime "14:16:17 PDT"]
[Termination "Hananmo won by checkmate"]

1. e4 {[%clk 0:02:51.9]} 1... c5 {[%clk 0:02:59.2]} 2. Nc3 {[%clk 0:02:48.9]}
2... Nc6 {[%clk 0:02:57.3]} 3. Bb5 {[%clk 0:02:47.9]} 3... Nd4 {[%clk
0:02:56.5]} 4. Nf3 {[%clk 0:02:45.8]} 4... Nxb5 {[%clk 0:02:54.2]} 5. Nxb5
{[%clk 0:02:46.7]} 5... a6 {[%clk 0:02:53.4]} 6. Nc3 {[%clk 0:02:44.9]} 6... b5
{[%clk 0:02:50.7]} 7. d4 {[%clk 0:02:43.1]} 7... cxd4 {[%clk 0:02:50.6]} 8. Qxd4
{[%clk 0:02:43.2]} 8... e6 {[%clk 0:02:47.4]} 9. O-O {[%clk 0:02:30.7]} 9... Bb7
{[%clk 0:02:43.6]} 10. Bf4 {[%clk 0:02:27.3]} 10... Rc8 {[%clk 0:02:39.9]} 11.
Rfe1 {[%clk 0:02:14.6]} 11... Nf6 {[%clk 0:02:32.4]} 12. Qa7 {[%clk 0:01:56.2]}
12... Bc6 {[%clk 0:02:18]} 13. Rad1 {[%clk 0:01:55.4]} 13... Nh5 {[%clk
0:01:54.2]} 14. Be5 {[%clk 0:01:44.2]} 14... Be7 {[%clk 0:01:46.9]} 15. Nd5
{[%clk 0:01:38]} 15... Bxd5 {[%clk 0:01:07]} 16. exd5 {[%clk 0:01:38.9]} 16...
Rxc2 {[%clk 0:01:05.6]} 17. dxe6 {[%clk 0:01:24.5]} 17... fxe6 {[%clk
0:01:04.9]} 18. Nd4 {[%clk 0:01:24.3]} 18... Bc5 {[%clk 0:01:02.4]} 19. Qxa6
{[%clk 0:01:24.2]} 19... Bxd4 {[%clk 0:01:00.3]} 20. Bxd4 {[%clk 0:01:25.1]}
20... O-O {[%clk 0:00:58.3]} 21. Qxb5 {[%clk 0:01:22.5]} 21... Qh4 {[%clk
0:00:43.7]} 22. Qxd7 {[%clk 0:00:50.8]} 22... Rfxf2 {[%clk 0:00:41.4]} 23. Qxe6+
{[%clk 0:00:41]} 23... Rf7 {[%clk 0:00:40.7]} 24. Rf1 {[%clk 0:00:32.8]} 24...
Nf4 {[%clk 0:00:18]} 25. Qb3 {[%clk 0:00:30.4]} 25... Rxg2+ {[%clk 0:00:16.2]}
26. Kh1 {[%clk 0:00:29.7]} 26... Qxh2# {[%clk 0:00:17.1]} 0-1

[Event "Late-Titled-Tuesday-Blitz-June-25-2024"]
[Site "Chess.com"]
[Date "2024.06.25"]
[Round "2"]
[White "Zapateado"]
[Black "whiteglovethief"]
[Result "1-0"]
[WhiteElo "2392"]
[BlackElo "2593"]
[TimeControl "180+1"]
[EndTime "14:16:17 PDT"]
[Termination "Zapateado won by resignation"]

1. c4 {[%clk 0:03:00.9]} 1... c5 {[%clk 0:02:58.3]} 2. Nc3 {[%clk 0:03:01.2]}
2... g6 {[%clk 0:02:58.1]} 3. g3 {[%clk 0:03:01.5]} 3... Bg7 {[%clk 0:02:57.8]}
4. Bg2 {[%clk 0:03:01.8]} 4... Nc6 {[%clk 0:02:58]} 5. d3 {[%clk 0:03:00.6]}
5... e6 {[%clk 0:02:58.3]} 6. e4 {[%clk 0:03:00.9]} 6... Nge7 {[%clk 0:02:58.5]}
7. Nge2 {[%clk 0:03:01.2]} 7... O-O {[%clk 0:02:58.7]} 8. O-O {[%clk 0:03:01.7]}
8... h6 {[%clk 0:02:57.8]} 9. Be3 {[%clk 0:02:59.8]} 9... Nd4 {[%clk 0:02:56]}
10. Rb1 {[%clk 0:02:57.1]} 10... d6 {[%clk 0:02:49.5]} 11. b4 {[%clk 0:02:54.3]}
11... Rb8 {[%clk 0:02:47.5]} 12. Qd2 {[%clk 0:02:49.4]} 12... Kh7 {[%clk
0:02:42.9]} 13. f4 {[%clk 0:02:49.9]} 13... f5 {[%clk 0:02:41.5]} 14. Bf2 {[%clk
0:02:41.2]} 14... b6 {[%clk 0:02:39.7]} 15. Nxd4 {[%clk 0:02:35.1]} 15... cxd4
{[%clk 0:02:38.8]} 16. Ne2 {[%clk 0:02:35.7]} 16... e5 {[%clk 0:02:36.5]} 17. a4
{[%clk 0:02:32]} 17... Bb7 {[%clk 0:02:31.4]} 18. Rfc1 {[%clk 0:02:10.6]} 18...
fxe4 {[%clk 0:02:28.9]} 19. dxe4 {[%clk 0:02:07.5]} 19... Ng8 {[%clk 0:02:28.2]}
20. g4 {[%clk 0:01:53.6]} 20... Nf6 {[%clk 0:02:20.9]} 21. Ng3 {[%clk 0:01:43]}
21... Nxg4 {[%clk 0:02:17.4]} 22. f5 {[%clk 0:01:38.4]} 22... Qh4 {[%clk
0:02:02.8]} 23. h3 {[%clk 0:01:16.4]} 23... Nxf2 {[%clk 0:02:00.3]} 24. Qxf2
{[%clk 0:01:13.3]} 24... gxf5 {[%clk 0:01:47.5]} 25. Nxf5 {[%clk 0:01:08.5]}
25... Qxf2+ {[%clk 0:01:47.6]} 26. Kxf2 {[%clk 0:01:09.2]} 26... Bc8 {[%clk
0:01:46.4]} 27. Kg3 {[%clk 0:01:04.8]} 27... Rxf5 {[%clk 0:01:42.6]} 28. exf5
{[%clk 0:01:05.7]} 28... Bxf5 {[%clk 0:01:42.2]} 29. Rb3 {[%clk 0:00:55.7]}
29... e4 {[%clk 0:01:41.5]} 30. Rf1 {[%clk 0:00:48.5]} 30... Be5+ {[%clk
0:01:37.7]} 31. Kh4 {[%clk 0:00:47.4]} 31... Kg6 {[%clk 0:01:28.3]} 32. Rg1
{[%clk 0:00:29.9]} 32... Kf6 {[%clk 0:01:19.9]} 33. Rf1 {[%clk 0:00:28.5]} 33...
Ke6 {[%clk 0:01:13.2]} 34. Rb2 {[%clk 0:00:21.6]} 34... e3 {[%clk 0:01:07.8]}
35. Bd5+ {[%clk 0:00:21.4]} 35... Ke7 {[%clk 0:00:56.5]} 36. Rxf5 {[%clk
0:00:19.8]} 36... d3 {[%clk 0:00:56.9]} 37. Rf7+ {[%clk 0:00:16.7]} 1-0

[Event "Late-Titled-Tuesday-Blitz-June-25-2024"]
[Site "Chess.com"]
[Date "2024.06.25"]
[Round "2"]
[White "pirulillo"]
[Black "MatthewG-p4p"]
[Result "0-1"]
[WhiteElo "2417"]
[BlackElo "2915"]
[TimeControl "180+1"]
[EndTime "14:16:19 PDT"]
[Termination "MatthewG-p4p won by resignation"]

1. e4 {[%clk 0:03:00.9]} 1... e6 {[%clk 0:02:46.9]} 2. d3 {[%clk 0:02:58]} 2...
d5 {[%clk 0:02:47.8]} 3. Nd2 {[%clk 0:02:57]} 3... Nf6 {[%clk 0:02:47.5]} 4.
Ngf3 {[%clk 0:02:56.6]} 4... c5 {[%clk 0:02:47.1]} 5. g3 {[%clk 0:02:55.7]} 5...
Be7 {[%clk 0:02:46.6]} 6. Bg2 {[%clk 0:02:56]} 6... O-O {[%clk 0:02:47.4]} 7.
O-O {[%clk 0:02:56.3]} 7... Nc6 {[%clk 0:02:48]} 8. e5 {[%clk 0:02:56.7]} 8...
Nd7 {[%clk 0:02:47.6]} 9. Re1 {[%clk 0:02:57.6]} 9... Qc7 {[%clk 0:02:48]} 10.
Qe2 {[%clk 0:02:57.2]} 10... b5 {[%clk 0:02:48.6]} 11. Nf1 {[%clk 0:02:56.6]}
11... Bb7 {[%clk 0:02:48.2]} 12. Bf4 {[%clk 0:02:55.9]} 12... Rfc8 {[%clk
0:02:47]} 13. c3 {[%clk 0:02:55.4]} 13... a5 {[%clk 0:02:46.9]} 14. h4 {[%clk
0:02:52.5]} 14... a4 {[%clk 0:02:45.8]} 15. a3 {[%clk 0:02:52.2]} 15... b4
{[%clk 0:02:46]} 16. N1h2 {[%clk 0:02:49.9]} 16... bxc3 {[%clk 0:02:41.3]} 17.
bxc3 {[%clk 0:02:50.8]} 17... Ba6 {[%clk 0:02:41.3]} 18. Bf1 {[%clk 0:02:47.1]}
18... Rab8 {[%clk 0:02:39.7]} 19. Ng5 {[%clk 0:02:44]} 19... h6 {[%clk
0:02:33.8]} 20. Qh5 {[%clk 0:02:40.9]} 20... hxg5 {[%clk 0:02:25.7]} 21. hxg5
{[%clk 0:02:41.8]} 21... Ndxe5 {[%clk 0:01:55.8]} 22. d4 {[%clk 0:02:37.5]}
22... Bxf1 {[%clk 0:01:53.4]} 23. Kxf1 {[%clk 0:02:34.5]} 23... cxd4 {[%clk
0:01:52.6]} 24. cxd4 {[%clk 0:02:35.4]} 24... Bd6 {[%clk 0:01:46]} 25. dxe5
{[%clk 0:02:30.7]} 25... Bxe5 {[%clk 0:01:40.1]} 26. Rxe5 {[%clk 0:02:20]} 26...
Nxe5 {[%clk 0:01:41]} 27. g6 {[%clk 0:02:20.1]} 27... Qc4+ {[%clk 0:01:37.2]}
28. Kg1 {[%clk 0:02:20.3]} 28... Nxg6 {[%clk 0:01:34.9]} 29. Bxb8 {[%clk
0:02:19.9]} 29... Rxb8 {[%clk 0:01:35.8]} 30. Nf3 {[%clk 0:02:13.2]} 30... Qc7
{[%clk 0:01:17.8]} 31. Kg2 {[%clk 0:02:05.9]} 31... Nf8 {[%clk 0:01:17.9]} 32.
Rh1 {[%clk 0:02:04]} 32... f6 {[%clk 0:01:17]} 33. g4 {[%clk 0:01:44.2]} 33...
e5 {[%clk 0:00:44.4]} 34. g5 {[%clk 0:01:27.4]} 34... e4 {[%clk 0:00:43.4]} 35.
Nd4 {[%clk 0:01:27.1]} 35... Qf4 {[%clk 0:00:21]} 36. Qh8+ {[%clk 0:01:16.9]}
36... Kf7 {[%clk 0:00:20.1]} 37. g6+ {[%clk 0:01:14.9]} 37... Nxg6 {[%clk
0:00:18.2]} 38. Qh3 {[%clk 0:01:07.3]} 38... Qe5 {[%clk 0:00:15.3]} 39. Ne2
{[%clk 0:01:04.1]} 39... Qg5+ {[%clk 0:00:14]} 40. Kh2 {[%clk 0:01:00.4]} 40...
Rh8 {[%clk 0:00:13.4]} 0-1

[Event "Late-Titled-Tuesday-Blitz-June-25-2024"]
[Site "Chess.com"]
[Date "2024.06.25"]
[Round "2"]
[White "Rakitic2010"]
[Black "NowInChess"]
[Result "1-0"]
[WhiteElo "2478"]
[BlackElo "2208"]
[TimeControl "180+1"]
[EndTime "14:16:23 PDT"]
[Termination "Rakitic2010 won by resignation"]

1. e4 {[%clk 0:03:00.9]} 1... e6 {[%clk 0:03:00.2]} 2. d3 {[%clk 0:02:54]} 2...
d5 {[%clk 0:03:00.2]} 3. Nf3 {[%clk 0:02:54.5]} 3... Nf6 {[%clk 0:03:00.2]} 4.
Nbd2 {[%clk 0:02:49.2]} 4... Nc6 {[%clk 0:02:56.3]} 5. Be2 {[%clk 0:02:45.9]}
5... dxe4 {[%clk 0:02:51.8]} 6. dxe4 {[%clk 0:02:45.6]} 6... e5 {[%clk
0:02:50.9]} 7. c3 {[%clk 0:02:45.4]} 7... a5 {[%clk 0:02:50.1]} 8. O-O {[%clk
0:02:43.9]} 8... Bc5 {[%clk 0:02:50.2]} 9. Qc2 {[%clk 0:02:42.9]} 9... O-O
{[%clk 0:02:48.2]} 10. Nc4 {[%clk 0:02:42.2]} 10... Qe7 {[%clk 0:02:43.9]} 11.
Bg5 {[%clk 0:02:41.6]} 11... h6 {[%clk 0:02:41.8]} 12. Bh4 {[%clk 0:02:41.7]}
12... Bg4 {[%clk 0:02:30]} 13. h3 {[%clk 0:02:40.3]} 13... Bxf3 {[%clk
0:02:29.4]} 14. Bxf3 {[%clk 0:02:41.2]} 14... b5 {[%clk 0:02:24]} 15. Ne3 {[%clk
0:02:33.9]} 15... Bxe3 {[%clk 0:02:22.3]} 16. fxe3 {[%clk 0:02:34.8]} 16... g5
{[%clk 0:02:15.4]} 17. Bg3 {[%clk 0:02:32.9]} 17... Kg7 {[%clk 0:02:06.5]} 18.
Be2 {[%clk 0:02:29.3]} 18... Qc5 {[%clk 0:01:54.7]} 19. Rf3 {[%clk 0:02:22.8]}
19... Nh5 {[%clk 0:01:32.8]} 20. Bh2 {[%clk 0:02:17.5]} 20... Nf4 {[%clk
0:01:30.4]} 21. Raf1 {[%clk 0:02:13.1]} 21... Nxe2+ {[%clk 0:01:20]} 22. Qxe2
{[%clk 0:02:14]} 22... f6 {[%clk 0:01:20.3]} 23. h4 {[%clk 0:02:11.7]} 23...
Rad8 {[%clk 0:01:13.2]} 24. hxg5 {[%clk 0:02:07.2]} 24... hxg5 {[%clk
0:01:14.1]} 25. Rh3 {[%clk 0:02:06.8]} 25... Rh8 {[%clk 0:01:11.6]} 26. Qf3
{[%clk 0:02:01.6]} 26... Qd6 {[%clk 0:00:52.8]} 27. Rg3 {[%clk 0:01:55.2]} 27...
Qe6 {[%clk 0:00:48]} 28. Qe2 {[%clk 0:01:42]} 28... Rh4 {[%clk 0:00:42.8]} 29.
Rgf3 {[%clk 0:01:36.9]} 29... Rdh8 {[%clk 0:00:40]} 30. Rxf6 {[%clk 0:01:28]}
30... Qxf6 {[%clk 0:00:40.9]} 31. Rxf6 {[%clk 0:01:26.3]} 31... Kxf6 {[%clk
0:00:39.5]} 32. Qxb5 {[%clk 0:01:26]} 32... Ne7 {[%clk 0:00:27.4]} 33. Bxe5+
{[%clk 0:01:22.5]} 33... Kf7 {[%clk 0:00:27]} 34. Bxh8 {[%clk 0:01:21.4]} 34...
Rxh8 {[%clk 0:00:27.9]} 35. Qxg5 {[%clk 0:01:21.4]} 35... Rg8 {[%clk 0:00:25.6]}
36. Qxa5 {[%clk 0:01:21.1]} 36... c6 {[%clk 0:00:17.2]} 37. Qh5+ {[%clk
0:01:19.4]} 37... Ke6 {[%clk 0:00:16.6]} 38. a4 {[%clk 0:01:16.5]} 38... Ng6
{[%clk 0:00:14.2]} 39. a5 {[%clk 0:01:15.4]} 39... Ne5 {[%clk 0:00:13.1]} 40. a6
{[%clk 0:01:14.2]} 40... Ra8 {[%clk 0:00:12.6]} 41. Qf5+ {[%clk 0:01:09.6]}
41... Kd6 {[%clk 0:00:12.5]} 42. Qf6+ {[%clk 0:01:09.5]} 1-0

[Event "Late-Titled-Tuesday-Blitz-June-25-2024"]
[Site "Chess.com"]
[Date "2024.06.25"]
[Round "2"]
[White "HanSchut"]
[Black "simplerXiao"]
[Result "0-1"]
[WhiteElo "2227"]
[BlackElo "2486"]
[TimeControl "180+1"]
[EndTime "14:16:27 PDT"]
[Termination "simplerXiao won by checkmate"]

1. e4 {[%clk 0:03:00.9]} 1... g6 {[%clk 0:03:00.9]} 2. d4 {[%clk 0:03:00.3]}
2... Bg7 {[%clk 0:03:01.7]} 3. Nc3 {[%clk 0:03:00.8]} 3... d6 {[%clk 0:03:01]}
4. f4 {[%clk 0:03:01.1]} 4... c6 {[%clk 0:03:01.4]} 5. Nf3 {[%clk 0:03:00.9]}
5... Nf6 {[%clk 0:03:01.5]} 6. Bd3 {[%clk 0:02:59.4]} 6... b5 {[%clk 0:03:01.3]}
7. e5 {[%clk 0:02:57.3]} 7... Nfd7 {[%clk 0:03:00.7]} 8. Qe2 {[%clk 0:02:54.5]}
8... b4 {[%clk 0:03:00.1]} 9. Ne4 {[%clk 0:02:54.2]} 9... d5 {[%clk 0:02:59.2]}
10. Neg5 {[%clk 0:02:53]} 10... e6 {[%clk 0:02:57.2]} 11. Bd2 {[%clk 0:02:49]}
11... a5 {[%clk 0:02:54.2]} 12. a3 {[%clk 0:02:47.6]} 12... h6 {[%clk
0:02:49.6]} 13. Nxf7 {[%clk 0:02:40.6]} 13... Kxf7 {[%clk 0:02:49]} 14. Nh4
{[%clk 0:02:37.2]} 14... Nf8 {[%clk 0:02:48.2]} 15. Nxg6 {[%clk 0:02:32.1]}
15... Nxg6 {[%clk 0:02:46.9]} 16. Qh5 {[%clk 0:02:32.5]} 16... Qf8 {[%clk
0:02:38.8]} 17. axb4 {[%clk 0:02:24.1]} 17... a4 {[%clk 0:02:38.4]} 18. O-O
{[%clk 0:02:15.4]} 18... Ke7 {[%clk 0:02:35.9]} 19. Bxg6 {[%clk 0:02:10.7]}
19... Kd8 {[%clk 0:02:30.8]} 20. f5 {[%clk 0:02:01.4]} 20... exf5 {[%clk
0:02:30.5]} 21. Bxf5 {[%clk 0:02:02]} 21... Bxf5 {[%clk 0:02:03.9]} 22. Rxf5
{[%clk 0:02:02.9]} 22... Qe8 {[%clk 0:02:03.8]} 23. Rf7 {[%clk 0:01:48.4]} 23...
Ra7 {[%clk 0:02:02.1]} 24. Raf1 {[%clk 0:01:46.2]} 24... Rf8 {[%clk 0:01:57.8]}
25. Qh4+ {[%clk 0:01:42.6]} 25... Re7 {[%clk 0:01:53.7]} 26. Rxg7 {[%clk
0:01:39.7]} 26... Rxf1+ {[%clk 0:01:51.9]} 27. Kxf1 {[%clk 0:01:38.5]} 27...
Qf8+ {[%clk 0:01:52.3]} 28. Qf6 {[%clk 0:01:37.5]} 28... Qxg7 {[%clk 0:01:52.3]}
29. Qd6+ {[%clk 0:01:09.7]} 29... Kc8 {[%clk 0:01:49.5]} 30. Bxh6 {[%clk
0:01:05.9]} 30... Qf7+ {[%clk 0:01:47.7]} 31. Ke1 {[%clk 0:00:55.9]} 31... Re6
{[%clk 0:01:34.3]} 32. Qf8+ {[%clk 0:00:52.5]} 32... Qxf8 {[%clk 0:01:33.6]} 33.
Bxf8 {[%clk 0:00:53.4]} 33... Kd7 {[%clk 0:01:33.2]} 34. g4 {[%clk 0:00:38.6]}
34... Ke8 {[%clk 0:01:32.5]} 35. Bg7 {[%clk 0:00:35.3]} 35... Kf7 {[%clk
0:01:31.7]} 36. Bf6 {[%clk 0:00:34.4]} 36... Nd7 {[%clk 0:01:31.3]} 37. g5
{[%clk 0:00:34.5]} 37... Nxf6 {[%clk 0:01:31.3]} 38. gxf6 {[%clk 0:00:34.3]}
38... Kg6 {[%clk 0:01:31.9]} 39. Kf2 {[%clk 0:00:33.6]} 39... Re8 {[%clk
0:01:32.1]} 40. Kg3 {[%clk 0:00:32.8]} 40... Kf5 {[%clk 0:01:30.6]} 41. Kf3
{[%clk 0:00:28.6]} 41... Rh8 {[%clk 0:01:30]} 42. Kg3 {[%clk 0:00:21.9]} 42...
Ke6 {[%clk 0:01:24.8]} 43. h4 {[%clk 0:00:20.6]} 43... c5 {[%clk 0:01:20.1]} 44.
bxc5 {[%clk 0:00:18]} 44... Rb8 {[%clk 0:01:20.7]} 45. c6 {[%clk 0:00:17.1]}
45... Rxb2 {[%clk 0:01:20.7]} 46. c4 {[%clk 0:00:14.2]} 46... Rb8 {[%clk
0:01:15]} 47. cxd5+ {[%clk 0:00:13]} 47... Kxd5 {[%clk 0:01:15.2]} 48. c7 {[%clk
0:00:13.9]} 48... Rc8 {[%clk 0:01:14.8]} 49. f7 {[%clk 0:00:14.2]} 49... a3
{[%clk 0:01:13.6]} 50. Kf4 {[%clk 0:00:10.2]} 50... a2 {[%clk 0:01:13.8]} 51.
Kg5 {[%clk 0:00:11.1]} 51... a1=Q {[%clk 0:01:13.8]} 52. Kf6 {[%clk 0:00:11.7]}
52... Qxd4 {[%clk 0:01:13]} 53. Ke7 {[%clk 0:00:12.6]} 53... Qxe5+ {[%clk
0:01:13]} 54. Kd7 {[%clk 0:00:12.6]} 54... Qxc7# {[%clk 0:01:12.1]} 0-1

[Event "Late-Titled-Tuesday-Blitz-June-25-2024"]
[Site "Chess.com"]
[Date "2024.06.25"]
[Round "2"]
[White "Kielinkei"]
[Black "NigiriSushies"]
[Result "1-0"]
[WhiteElo "2520"]
[BlackElo "2303"]
[TimeControl "180+1"]
[EndTime "14:16:29 PDT"]
[Termination "Kielinkei won on time"]

1. d4 {[%clk 0:03:00.9]} 1... d5 {[%clk 0:03:00.1]} 2. c4 {[%clk 0:03:00.5]}
2... c6 {[%clk 0:03:00.7]} 3. Nf3 {[%clk 0:02:59.3]} 3... Nf6 {[%clk 0:03:01.2]}
4. e3 {[%clk 0:02:55.8]} 4... Nbd7 {[%clk 0:02:51.9]} 5. Nc3 {[%clk 0:02:55]}
5... e6 {[%clk 0:02:51.8]} 6. Be2 {[%clk 0:02:51.2]} 6... dxc4 {[%clk
0:02:49.8]} 7. a4 {[%clk 0:02:50.8]} 7... Bd6 {[%clk 0:02:49.8]} 8. O-O {[%clk
0:02:49.4]} 8... O-O {[%clk 0:02:49.4]} 9. Bxc4 {[%clk 0:02:48]} 9... e5 {[%clk
0:02:49.4]} 10. Qc2 {[%clk 0:02:39.9]} 10... exd4 {[%clk 0:02:46.4]} 11. exd4
{[%clk 0:02:32.8]} 11... Nb6 {[%clk 0:02:44.8]} 12. Bd3 {[%clk 0:02:32.4]} 12...
Bg4 {[%clk 0:02:41.8]} 13. Ne5 {[%clk 0:02:30]} 13... Bh5 {[%clk 0:02:18.7]} 14.
Bg5 {[%clk 0:02:25.3]} 14... Bg6 {[%clk 0:02:11.4]} 15. Rad1 {[%clk 0:02:11.1]}
15... Re8 {[%clk 0:02:00.3]} 16. Rfe1 {[%clk 0:02:09.7]} 16... Be7 {[%clk
0:01:45.9]} 17. Bxg6 {[%clk 0:01:43.5]} 17... hxg6 {[%clk 0:01:43.8]} 18. Qb3
{[%clk 0:01:38.6]} 18... Nbd5 {[%clk 0:01:32.4]} 19. Qxb7 {[%clk 0:01:33.5]}
19... Rb8 {[%clk 0:00:26.9]} 20. Qxa7 {[%clk 0:01:06.2]} 20... Qc8 {[%clk
0:00:21.4]} 21. Nxd5 {[%clk 0:00:59.1]} 21... cxd5 {[%clk 0:00:08.8]} 22. Bxf6
{[%clk 0:00:51.8]} 22... Bxf6 {[%clk 0:00:07.4]} 23. Qxf7+ {[%clk 0:00:50.7]}
23... Kh8 {[%clk 0:00:03.7]} 24. Nxg6+ {[%clk 0:00:50.1]} 24... Kh7 {[%clk
0:00:04.2]} 25. Ne5 {[%clk 0:00:41.5]} 25... Rxb2 {[%clk 0:00:01.2]} 26. Qg6+
{[%clk 0:00:36.2]} 1-0

[Event "Late-Titled-Tuesday-Blitz-June-25-2024"]
[Site "Chess.com"]
[Date "2024.06.25"]
[Round "2"]
[White "GoltsevDmitry2000"]
[Black "Jahonas"]
[Result "1-0"]
[WhiteElo "2710"]
[BlackElo "2432"]
[TimeControl "180+1"]
[EndTime "14:16:31 PDT"]
[Termination "GoltsevDmitry2000 won by checkmate"]

1. e4 {[%clk 0:02:41.8]} 1... c6 {[%clk 0:02:59.4]} 2. e5 {[%clk 0:02:41.7]}
2... d5 {[%clk 0:02:59]} 3. exd6 {[%clk 0:02:42.6]} 3... exd6 {[%clk 0:02:58.8]}
4. d4 {[%clk 0:02:42.8]} 4... d5 {[%clk 0:02:58.9]} 5. Nf3 {[%clk 0:02:43.4]}
5... Nf6 {[%clk 0:02:59.3]} 6. c4 {[%clk 0:02:43.5]} 6... Bd6 {[%clk 0:02:59.4]}
7. Nc3 {[%clk 0:02:43.7]} 7... O-O {[%clk 0:02:58.3]} 8. Be2 {[%clk 0:02:44.2]}
8... Bg4 {[%clk 0:02:56.9]} 9. O-O {[%clk 0:02:44]} 9... Re8 {[%clk 0:02:57.2]}
10. Bg5 {[%clk 0:02:43.4]} 10... dxc4 {[%clk 0:02:42.1]} 11. Bxc4 {[%clk
0:02:39.1]} 11... Bh5 {[%clk 0:02:28.9]} 12. h3 {[%clk 0:02:36.6]} 12... Nbd7
{[%clk 0:02:28.1]} 13. a3 {[%clk 0:02:33.8]} 13... a5 {[%clk 0:02:26.7]} 14. Rc1
{[%clk 0:02:32.8]} 14... Bg6 {[%clk 0:02:13.8]} 15. Re1 {[%clk 0:02:27.8]} 15...
Rxe1+ {[%clk 0:02:11.2]} 16. Qxe1 {[%clk 0:02:28.7]} 16... Qb6 {[%clk
0:02:05.5]} 17. Na4 {[%clk 0:02:17.1]} 17... Qa7 {[%clk 0:02:04]} 18. Ba2 {[%clk
0:02:16.2]} 18... Re8 {[%clk 0:02:01.2]} 19. Qd1 {[%clk 0:02:09.7]} 19... Ne4
{[%clk 0:01:51.4]} 20. Be3 {[%clk 0:02:07.9]} 20... Qb8 {[%clk 0:01:44.5]} 21.
d5 {[%clk 0:02:04.2]} 21... c5 {[%clk 0:01:42]} 22. Nc3 {[%clk 0:01:58.7]} 22...
b5 {[%clk 0:01:38.7]} 23. Nxe4 {[%clk 0:01:53.1]} 23... Bxe4 {[%clk 0:01:38.4]}
24. Ng5 {[%clk 0:01:52.1]} 24... Bg6 {[%clk 0:01:36.9]} 25. h4 {[%clk
0:01:42.2]} 25... c4 {[%clk 0:01:03.5]} 26. h5 {[%clk 0:01:30.2]} 26... Bd3
{[%clk 0:01:01.9]} 27. Bb1 {[%clk 0:01:18.1]} 27... Ne5 {[%clk 0:01:00.9]} 28.
Bd4 {[%clk 0:01:13.2]} 28... Bxb1 {[%clk 0:00:58.4]} 29. Rxb1 {[%clk 0:01:14.1]}
29... h6 {[%clk 0:00:57.9]} 30. Ne4 {[%clk 0:01:13.1]} 30... Nd3 {[%clk
0:00:56.2]} 31. Qg4 {[%clk 0:01:11.9]} 31... Be5 {[%clk 0:00:52.9]} 32. Nf6+
{[%clk 0:01:02.9]} 32... Kh8 {[%clk 0:00:38.8]} 33. Nxe8 {[%clk 0:01:02.7]}
33... Qxe8 {[%clk 0:00:39.7]} 34. d6 {[%clk 0:00:49.6]} 34... Bxd4 {[%clk
0:00:20.6]} 35. Qxd4 {[%clk 0:00:49]} 35... Qd7 {[%clk 0:00:20.6]} 36. b3 {[%clk
0:00:46.4]} 36... f6 {[%clk 0:00:14.3]} 37. bxc4 {[%clk 0:00:46.1]} 37... bxc4
{[%clk 0:00:14.5]} 38. Qxc4 {[%clk 0:00:43.7]} 38... Ne5 {[%clk 0:00:14]} 39.
Rb8+ {[%clk 0:00:43.3]} 39... Kh7 {[%clk 0:00:13.6]} 40. Qg8# {[%clk 0:00:43.9]}
1-0